Cogmind - Beta 10.2 @@@ ROGUE MODE // 2022.01.27 @ 15:21:00 Player: NoNeedToExplain Result: Destroyed by H-88 Terminator with Heavy Machine Gun Performance ------------- Evolutions (8) 4000 Regions Visited (29) 5800 Robots Destroyed (349) 1745 Value Destroyed (16297) 16297 Prototype IDs (54) 1080 Alien Tech Used (2) 400 Bonus (17197) 17197 TOTAL SCORE: 46519 Bonus ------- Triggered Max Security 1000 High Alert Combat Kills 2551 Follower Combat Kills 2993 Aligned with FarCom 300 Met Zhirov 300 Met Warlord at Base 500 MAIN.C Attacked Warlord 500 Warlord Defense Kill 240 Built Enhanced Grunts 300 Met R17 at Cetus 500 Met R17 at Research 2000 Met Warlord at Research 2000 Invited to Help at Command 2000 Scanned by Researcher 500 Acquired SGEMP 2000 Friendly Fire -487 Cogmind --------- Core Integrity 0/1450 Matter 290/300 Energy 98/100 System Corruption 33% Temperature Cool (0) Movement Core (50) Location -2/Testing Parts ------- > --- POWER (1) -------- (None) > --- PROPULSION (6) --- (None) > --- UTILITY (13) ----- (None) > --- WEAPON (3) ------- (None) > --- INVENTORY (4) ---- Latent Energy Streamer Nova Cannon SGEMP Prototype Peak State ------------ > --- POWER ------------ Heavy Antimatter Reactor > --- PROPULSION ------- Enhanced Armored Heavy Treads Enhanced Armored Heavy Treads Enhanced Armored Heavy Treads > --- UTILITY ---------- Advanced Heat Sink Experimental Coolant Injector Large Storage Unit Large Storage Unit Large Storage Unit High-capacity Storage Unit Advanced Energy Well Advanced Target Analyzer Experimental Core Shielding Layered Medium Armor Plating Experimental Shield Generator Point Defense System System Restoration Module > --- WEAPON ----------- Heavy Neutron Cannon Enhanced Nova Cannon Compact Linear Accelerator > --- INVENTORY -------- Improved Quantum Reactor Spiked Heavy Treads Armored Heavy Treads Advanced Heavy Treads Advanced Heavy Treads Advanced Heavy Treads Advanced Heavy Treads High-density Centrium Wheel Experimental Coolant Injector Advanced Energy Well Matter Compressor Point Defense System Integrated Dissipator Gamma Rifle Gamma Rifle Gamma Rifle Gamma Rifle Compact HERF Cannon Latent Energy Streamer Nova Cannon Hardcell Cannon Hardcell Cannon Great Axe Plasma Lance [Rating: 187] Favorites ----------- Power Quantum Reactor Engine Heavy Deuterium Engine Power Core Fission Core Reactor Quantum Reactor Propulsion Light Treads Treads Light Treads Leg Flexi-carbon Leg Wheel Armored Wheel Utility Large Storage Unit Device Improved Cooling System Storage Large Storage Unit Processor Improved Targeting Computer Protection Layered Medium Armor Plating Weapon Advanced Variable Charge Gun Energy Gun Advanced Variable Charge Gun Energy Cannon Heavy Plasma Cannon Ballistic Gun Heavy Assault Rifle Ballistic Cannon Mini Assault Cannon Launcher Long-range Missile Launcher Impact Weapon Hammer Slashing Weapon Great Axe Piercing Weapon Spear Special Melee Weapon Improved Datajack Build | -11 -10 -10 -9 -9 -9 -8 -8 -8 -7 -7 -7 -6 -6 -6 -6 -6 -5 -5 -5 -5 -4 -4 -4 -4 -4 -3 -3 -2 -2 ------- Run | Scr Mat Min Mat Min Exi Min Mat Sto Fac Low Low Fac Was Fac Ext Cet Fac Upp Upp War Pro Fac Upp Upp Zhi Pro Res Res Tes Slots Evolved 16 | . . . 2 . . . 2 . 2 . . 2 . . . . 2 . . . . 2 . . . . 2 2 . Power . | . . . . . . . . . . . . . . . . . . . . . . . . . . . . . . Propulsion 4 | . . . . . . . 1 . 1 . . . . . . . . . . . . . . . . . 2 . . Utility 11 | . . . 1 . . . 1 . 1 . . 2 . . . . 2 . . . . 2 . . . . . 2 . Weapon 1 | . . . 1 . . . . . . . . . . . . . . . . . . . . . . . . . . Parts Attached 403 | 7 21 5 17 7 4 2 26 13 42 13 . 50 4 9 6 15 10 4 7 12 1 11 9 25 2 19 17 25 20 Power 21 | 1 2 . 1 . . . 4 . 2 1 . 3 . 1 . . 1 . . 1 . . . 1 . 1 . 1 1 Engine 12 | 1 2 . 1 . . . 3 . 2 1 . 2 . . . . . . . . . . . . . . . . . Core 3 | . . . . . . . 1 . . . . 1 . 1 . . . . . . . . . . . . . . . Reactor 6 | . . . . . . . . . . . . . . . . . 1 . . 1 . . . 1 . 1 . 1 1 Propulsion 74 | 2 11 3 . 2 . . 4 2 7 7 . 10 2 . . . . 2 . . . . . 3 . 2 5 2 10 Treads 48 | . 4 2 . 2 . . 1 . 6 7 . 1 2 . . . . 2 . . . . . 3 . 2 5 2 9 Leg 2 | . . . . . . . . . . . . 2 . . . . . . . . . . . . . . . . . Wheel 24 | 2 7 1 . . . . 3 2 1 . . 7 . . . . . . . . . . . . . . . . 1 Hover . | . . . . . . . . . . . . . . . . . . . . . . . . . . . . . . Flight . | . . . . . . . . . . . . . . . . . . . . . . . . . . . . . . Utility 113 | 2 2 . 8 2 . . 4 . 2 . . 15 1 4 4 7 4 2 4 4 . 6 3 12 2 4 7 13 1 Device 48 | . . . 4 1 . . . . 1 . . 7 1 2 2 2 2 . 3 1 . 4 1 6 . 1 2 8 . Storage 26 | 2 2 . 4 . . . . . 1 . . 5 . . 1 2 1 . 1 . . . . 1 1 1 3 . 1 Processor 9 | . . . . . . . 2 . . . . . . . . 2 . . . . . 2 . 1 . . 1 1 . Hackware . | . . . . . . . . . . . . . . . . . . . . . . . . . . . . . . Protection 30 | . . . . 1 . . 2 . . . . 3 . 2 1 1 1 2 . 3 . . 2 4 1 2 1 4 . Artifact . | . . . . . . . . . . . . . . . . . . . . . . . . . . . . . . Weapon 195 | 2 6 2 8 3 4 2 14 11 31 5 . 22 1 4 2 8 5 . 3 7 1 5 6 9 . 12 5 9 8 Energy Gun 79 | 2 4 1 2 1 1 1 4 4 16 2 . 9 . 1 1 4 3 . 2 5 . 3 2 4 . 2 3 2 . Energy Cannon 30 | . . 1 2 . 1 . 2 1 3 . . 2 . 1 1 . 1 . 1 . . . 1 1 . 3 2 5 2 Ballistic Gun 27 | . 1 . 3 1 1 . 5 3 3 . . . . . . 1 . . . 1 1 . 2 1 . 4 . . . Ballistic Cannon 21 | . 1 . . . 1 . . . 3 2 . 7 . 1 . 2 . . . . . . . . . 1 . 1 2 Launcher 30 | . . . . 1 . 1 3 2 5 1 . 3 1 . . 1 1 . . 1 . 1 1 3 . 2 . 1 2 Special Weapon . | . . . . . . . . . . . . . . . . . . . . . . . . . . . . . . Impact Weapon 1 | . . . 1 . . . . . . . . . . . . . . . . . . . . . . . . . . Slashing Weapon 2 | . . . . . . . . . . . . . . . . . . . . . . 1 . . . . . . 1 Piercing Weapon 4 | . . . . . . . . . 1 . . 1 . 1 . . . . . . . . . . . . . . 1 Special Melee Weapon 1 | . . . . . . . . 1 . . . . . . . . . . . . . . . . . . . . . Unidentified Prototypes 45 | . . . 2 . 2 . 2 3 6 . . 3 . . . 4 . 2 . 5 . . . . 3 . 2 4 7 Parts Lost 112 | . 4 1 2 3 . . 6 1 5 2 . 19 . 1 . 2 . . . . 1 2 2 17 . 12 . 4 28 Power 8 | . 1 . . . . . 1 . . . . 2 . . . . . . . . . . . 1 . 1 . . 2 Propulsion 30 | . 1 1 . 1 . . . 1 2 2 . 8 . . . . . . . . . . . 3 . 2 . . 9 Utility 34 | . . . . . . . 2 . . . . 2 . 1 . 1 . . . . . 1 1 8 . 2 . 3 13 Weapon 40 | . 2 . 2 2 . . 3 . 3 . . 7 . . . 1 . . . . 1 1 1 5 . 7 . 1 4 Highest Loss Streak 28 | . 1 1 1 2 . . 3 1 4 1 . 10 . 1 . 2 . . . . 1 1 1 10 . 7 . 1 28 Average Slot Usage (%) 91 | . 100 100 99 100 99 100 98 99 99 99 100 90 88 85 86 85 88 88 88 87 88 88 88 88 88 83 77 78 69 Engine 4 | . 14 14 11 11 11 11 7 9 7 7 7 5 6 3 . . . . . . . . . . . . . . . Reactor 1 | . . . . . . . . . . . . . . . . . 2 5 5 5 5 5 5 4 5 4 4 4 2 Treads 14 | . 1 22 22 22 22 22 9 . 20 29 30 13 10 13 13 13 11 11 11 11 11 10 10 9 10 9 14 13 11 Wheel 4 | . 26 5 . . . . 16 26 9 . . 8 5 . . . . . . . . . . . . . . . . Device 7 | . . . 2 1 . . . . 3 . . 9 20 18 13 11 14 12 10 11 11 11 10 17 16 14 8 12 15 Storage 22 | . 28 28 30 23 22 22 18 18 19 23 23 19 20 20 20 21 23 23 23 23 23 21 21 25 26 23 21 21 18 Processor 6 | . . . . . . . 9 18 15 15 15 7 . . . 5 5 5 5 5 5 12 15 10 10 5 4 4 2 Protection 5 | . . . . 7 11 11 7 . . . . 4 6 7 13 6 7 9 11 11 11 10 9 2 2 8 9 9 5 Energy Gun 10 | . 21 16 4 16 19 18 12 10 15 14 15 6 . 1 . 11 16 17 16 16 13 14 6 5 5 1 3 4 . Energy Cannon 3 | . . 11 15 5 2 2 . . . . . . 6 10 13 2 . . . . . . 2 1 . 2 6 6 4 Ballistic Gun 3 | . . . 12 8 10 11 12 14 3 5 . . . . . 3 . . . . 3 . 5 7 5 4 1 . . Ballistic Cannon 1 | . 5 . . . . . . . 2 . . 8 6 5 5 1 . . . . . . . . . 3 1 . 2 Naked Turns 25 | . . . . . . . . . . . . 4 . . . . . . . . . . . . . . . . 21 Heaviest Build 172 | 16 45 48 61 60 63 63 70 54 71 72 72 95 95 94 94 94 116 121 151 140 130 131 139 141 127 149 160 172 152 Greatest Support 240 | 20 40 42 42 42 42 42 62 36 88 112 96 96 140 140 140 140 140 160 160 160 160 160 160 160 150 150 210 210 240 Greatest Overweight (x) 5 | . 4 1 1 1 1 1 4 1 2 . . 5 2 . . . . . . . . . . . . 1 . . 4 Average Overweight (x) . | . 1 1 1 1 1 1 . 1 . . . . . . . . . . . . . . . . . . . . . Largest Inventory Capacity 36 | 8 16 16 20 20 16 16 16 16 22 22 22 26 22 22 22 28 28 28 36 30 30 30 30 30 30 30 30 30 30 Average Capacity 23 | 6 15 16 19 16 16 16 16 16 19 22 22 21 22 22 22 23 28 28 28 30 30 30 30 30 30 30 30 30 26 Most Carried 30 | 8 16 16 20 20 15 16 16 16 22 22 22 22 22 22 22 28 28 28 30 30 30 30 29 29 25 28 30 30 30 Average Carried 21 | 3 15 15 18 15 14 15 15 15 18 21 20 17 21 21 21 22 27 27 28 29 29 29 28 20 20 23 28 29 24 Final Capacity 30 | 8 16 16 20 16 16 16 16 16 22 22 22 22 22 22 22 28 28 28 30 30 30 30 30 30 30 30 30 30 4 Final Carried 30 | 8 16 16 20 15 14 16 16 16 22 20 22 22 22 22 22 28 28 28 30 30 29 30 29 17 25 25 30 30 4 Class Distribution -------------------- 25% | Scavenger-Gunner 17% | Hauler-Gunner 12% | Hauler-Tank 10% | Mutant 6% | Skirmisher 5% | Tank 4% | Gunner 4% | Scavenger-Mutant 3% | Hauler-Skirmisher 3% | Scavenger-Tank Dominant Class ---------------- Mutant | -10/Materials Mutant | -10/Mines Hauler-Gunner | -9/Materials Tank | -9/Mines Tank | -9/Exiles Skirmisher | -8/Mines Skirmisher | -8/Materials Gunner | -8/Storage Hauler-Gunner | -7/Factory Hauler-Gunner | -7/Lower Caves Hauler-Gunner | -7/Lower Caves Hauler-Gunner | -6/Factory Hauler-Skirmisher | -6/Waste Hauler-Skirmisher | -6/Factory Hauler-Tank | -6/Extension Scavenger-Skirmisher | -6/Cetus Scavenger-Gunner | -5/Factory Scavenger-Gunner | -5/Upper Caves Scavenger-Gunner | -5/Upper Caves Scavenger-Gunner | -5/Warlord Scavenger-Gunner | -4/Proximity Caves Scavenger-Gunner | -4/Factory Scavenger-Gunner | -4/Upper Caves Scavenger-Gunner | -4/Upper Caves Scavenger-Gunner | -4/Zhirov Scavenger-Tank | -3/Proximity Caves Scavenger-Tank | -3/Research Hauler-Tank | -2/Research Hauler-Tank | -2/Testing Resources | -11 -10 -10 -9 -9 -9 -8 -8 -8 -7 -7 -7 -6 -6 -6 -6 -6 -5 -5 -5 -5 -4 -4 -4 -4 -4 -3 -3 -2 -2 ----------- Run | Scr Mat Min Mat Min Exi Min Mat Sto Fac Low Low Fac Was Fac Ext Cet Fac Upp Upp War Pro Fac Upp Upp Zhi Pro Res Res Tes Matter Collected 8576 | 205 585 85 291 149 . 174 526 375 533 485 . 914 410 293 210 149 127 40 61 129 74 74 278 543 . 466 411 646 343 Remotely 1027 | . . . . . . . . . . . . 415 410 202 . . . . . . . . . . . . . . . Salvage Created 18907 | 92 474 78 731 344 . 125 1411 748 2329 150 . 1049 858 1144 494 16 198 163 127 78 1113 274 492 1521 . 681 804 1323 2090 Parts 683 | 5 29 4 48 19 . 5 65 44 95 10 . 38 5 39 18 2 7 4 8 4 30 14 14 45 . 22 18 60 31 Haulers Intercepted 20 | . . . 4 . . . 4 3 3 . . 1 . . . . 2 . . . . . . . . . 2 1 . Recyclers Shooed 12 | . . 1 1 1 . . 1 1 2 . . 1 . . 2 . . . . . . 1 . . . . 1 . . Parts Field Recycled . | . . . . . . . . . . . . . . . . . . . . . . . . . . . . . . Retrieved Matter . | . . . . . . . . . . . . . . . . . . . . . . . . . . . . . . Parts Self-Destructed 160 | . . . . . . . . . . 13 . . . . . . . 13 14 38 30 . 11 28 . 13 . . . Prevented 23 | . . . . . . . . . . 3 . . . . . . . . . 7 . . . 6 . 7 . . . Kills | -11 -10 -10 -9 -9 -9 -8 -8 -8 -7 -7 -7 -6 -6 -6 -6 -6 -5 -5 -5 -5 -4 -4 -4 -4 -4 -3 -3 -2 -2 ------- Run | Scr Mat Min Mat Min Exi Min Mat Sto Fac Low Low Fac Was Fac Ext Cet Fac Upp Upp War Pro Fac Upp Upp Zhi Pro Res Res Tes Combat Hostiles Destroyed 271 | . 11 1 15 7 . 2 22 10 31 6 . 15 4 10 8 1 . 3 2 1 12 5 8 26 . 13 8 24 26 Melee 10 | . . . . . . . . . . . . . . . . . . . . . . . . . . . . . 10 Guns 90 | . 6 1 4 3 . 1 11 7 12 . . . . . . . . 3 2 1 11 2 7 12 . 3 1 3 . Cannons 88 | . 5 . 11 1 . . . . 4 2 . 9 2 9 8 . . . . . . . . 6 . 4 4 15 8 AOE 57 | . . . . 3 . . 7 2 13 3 . 3 2 1 . 1 . . . . . 3 1 6 . 6 . 4 2 Classes Destroyed 23 | 1 4 1 2 2 . . 2 . 3 . . . 1 1 . . . . . 1 . . . 1 . 1 . 1 2 Worker 17 | . . 1 1 . . . 3 1 5 . . 4 . 2 . . . . . . . . . . . . . . . Builder 12 | . 1 1 . . . . . 2 1 . . 5 . 1 . . . . . . . 1 . . . . . . . Tunneler 2 | . . . . . . . . . 2 . . . . . . . . . . . . . . . . . . . . Hauler 20 | . . . 4 . . . 4 3 3 . . 1 . . . . 2 . . . . . . . . . 2 1 . Recycler 12 | 1 1 . . 1 . . . . 3 . . 2 . 4 . . . . . . . . . . . . . . . Mechanic 3 | . . . . . . . . . 1 . . . . . . . . . . . . . . . . . . . 2 Operator 2 | . . . . . . . . . . . . . . 1 . . 1 . . . . . . . . . . . . Watcher 7 | . 3 . . . . . 1 1 1 . . . . . . . . . . . . . . . . . . 1 . Swarmer 43 | . 5 . 7 2 . . 3 . 7 4 . 4 . . . 1 . . . . . . 1 3 . 2 . 4 . Saboteur 1 | . . . . . . . . . . . . . . . . . . . . . . . . . . . . . 1 Grunt 104 | . 6 1 3 2 . 2 9 7 18 1 . 4 . 4 4 . . 1 . . 2 3 4 10 . 8 4 . 11 Brawler 17 | . . . . . . . 1 . 1 . . . . 1 . . . . . . 4 . 1 3 . 1 1 . 4 Duelist 16 | . . . . 1 . . 1 . 1 . . . . . . . . 2 . . 2 . . 2 . . . . 7 Protector 1 | . . . . . . . . . . . . . . . . . . . . . . . . 1 . . . . . Sentry 32 | . . . 5 . . . 7 3 3 . . 1 . 2 4 . . . 1 . 2 . 1 2 . 1 . . . Demolisher 6 | . . . . 2 . . . . . . . . . . . . . . . . . . . . . . . 4 . Hunter 17 | . . . . . . . 1 . . . . 4 . 2 . . . . . . 2 2 . 2 . . 2 2 . Programmer 18 | . . . . . . . . . 3 1 . 2 . 1 . . . . 1 . . . 1 3 . . . 5 1 Behemoth 2 | . . . . . . . . . . . . . . . . . . . . . . . . . . 1 1 . . Compactor 4 | . . . . . . . . . . . . . 4 . . . . . . . . . . . . . . . . Investigator 1 | . . . . . . . . . . . . . . . . . . . . . . . . . . . . . 1 Striker 8 | . . . . . . . . . . . . . . . . . . . . . . . . . . . . 6 2 Executioner 4 | . . . . . . . . . . . . . . . . . . . . 1 . . . . . . . 3 . Best Kill Streak 17 | 1 4 1 4 4 . 2 5 7 8 4 . 11 2 10 1 1 1 2 1 1 5 4 4 11 . 5 5 17 11 Combat Bots Only 16 | . 3 1 3 3 . 2 5 3 4 4 . 7 2 4 1 1 . 2 1 1 5 3 4 11 . 5 4 16 9 Max Kills in Single Turn 8 | 1 1 1 2 1 . 1 4 5 4 2 . 5 1 8 1 1 1 1 1 1 2 2 1 2 . 2 1 2 5 Gunslinging 1 | . . . . . . . . . . . . . . . . . . . . . 1 . . 1 . . . . . Exploded 3 | . . . . 1 . . 3 1 3 2 . 1 1 1 . 1 . . . . . 2 1 2 . 2 . 2 1 Melee 1 | . . . . . . . . . . . . . . . . . . . . . . . . . . . . . 1 Uniques/NPCs Destroyed . | . . . . . . . . . . . . . . . . . . . . . . . . . . . . . . Combat | -11 -10 -10 -9 -9 -9 -8 -8 -8 -7 -7 -7 -6 -6 -6 -6 -6 -5 -5 -5 -5 -4 -4 -4 -4 -4 -3 -3 -2 -2 -------- Run | Scr Mat Min Mat Min Exi Min Mat Sto Fac Low Low Fac Was Fac Ext Cet Fac Upp Upp War Pro Fac Upp Upp Zhi Pro Res Res Tes Damage Taken 32941 | . 679 107 397 648 . 60 748 390 1080 622 . 2355 34 467 600 279 20 165 98 90 1099 715 1257 3181 . 1784 315 3320 12431 Core 2941 | . 128 23 7 65 . . 69 48 89 13 . 361 . 15 40 21 . . . 43 73 16 123 231 . 107 . 59 1410 Absorbed by Shields 1990 | . . . . . . . . . . . . . . . 21 97 . . . . . . . . . . . . 1872 Reduced by Siege Mode 2170 | . . . . . . . . . . . . . . 42 27 22 . . . . 75 53 95 295 . 118 14 470 959 Core Remaining (%) 74 | 100 . 39 . . . 82 . 78 . . 85 . . . . 48 . . . . 88 . . . . 52 100 . . Volleys Fired 683 | 2 55 7 44 18 . 6 62 27 66 18 . 42 21 19 34 5 8 6 4 1 27 8 24 51 . 28 23 48 29 Largest 3 | 2 2 2 3 3 . 3 3 3 3 3 . 3 3 3 3 3 3 3 3 3 3 3 3 3 . 3 3 3 3 Hottest 720 | 90 90 123 146 138 . 128 133 115 180 161 . 176 171 228 228 261 240 720 240 240 240 480 196 185 . 191 274 324 300 Shots Fired 1771 | 4 109 14 129 49 . 17 147 75 175 47 1 82 63 57 82 10 22 18 12 3 81 21 63 142 . 71 64 134 79 Gun 1030 | 4 67 9 68 30 . 12 135 72 150 25 1 28 . 1 . 5 21 18 12 3 81 19 60 112 . 31 24 42 . Cannon 645 | . 42 5 61 14 . 2 2 2 17 16 . 43 42 56 82 4 . . . . . . . 22 . 30 40 87 78 Launcher 96 | . . . . 5 . 3 10 1 8 6 . 11 21 . . 1 1 . . . . 2 3 8 . 10 . 5 1 Special . | . . . . . . . . . . . . . . . . . . . . . . . . . . . . . . Kinetic 618 | . 44 . 48 10 . 6 79 64 39 26 . 39 21 19 24 1 . . . . 16 3 22 59 . 34 3 32 29 Thermal 703 | 4 49 14 54 14 . . . 8 70 8 . 12 21 37 58 6 21 18 12 3 65 16 38 35 . 9 7 90 34 Explosive 52 | . . . . . . . . . . . . 6 21 . . 1 1 . . . . 2 3 8 . 10 . . . Electromagnetic 380 | . 16 . 27 25 . 11 68 3 66 13 1 25 . 1 . 2 . . . . . . . 40 . 15 45 7 15 Entropic 17 | . . . . . . . . . . . . . . . . . . . . . . . . . . 3 9 5 . Robot Hit Streak 44 | 1 9 7 12 8 . 4 12 5 38 8 . 8 13 14 10 8 8 22 3 4 36 11 27 22 . 44 17 37 27 Robot Miss Streak 7 | 2 7 1 7 4 . 2 6 3 3 1 . 4 2 2 2 1 2 1 2 . 1 1 2 2 . 3 1 2 1 Penetration Max 1 | . . . . . . . . . 1 . . . . . . . . . . . . 1 . . . . . . . Secondary Targets 13 | . . . . . . . 2 . . . . . . . . . . 2 . . 4 1 2 2 . . . . . Max Gunslinging Chain 1 | . . . . . . . 1 . . . . . . . . . . 1 . . 1 1 1 1 . . . . . Shots Hit Robots 1313 | 1 53 9 68 31 . 10 103 59 130 34 . 56 48 41 48 9 14 17 7 1 69 15 52 111 . 60 52 109 106 Core Hits 670 | 2 23 3 24 13 . 7 49 28 83 8 . 55 10 28 16 4 12 4 4 1 29 20 18 67 . 36 8 43 75 Critical Hits 66 | . . . . . . . 9 2 4 3 . . . . 1 2 . . . . 4 . 2 6 . 6 6 9 12 Critical Kills 15 | . . . . . . . 2 . . . . . . . . . . . . . 2 . . 5 . . . 4 2 Critical Parts Destroyed 35 | . . . . . . . 5 1 4 3 . . . . 1 2 . . . . 2 . 2 1 . 2 4 3 5 Melee Attacks 60 | . . . 2 . . . . 12 1 . . 3 . 1 . . . . . . . . . . . . . . 41 Impact 2 | . . . 2 . . . . . . . . . . . . . . . . . . . . . . . . . . Slashing 8 | . . . . . . . . . . . . . . . . . . . . . . . . . . . . . 8 Piercing 38 | . . . . . . . . . 1 . . 3 . 1 . . . . . . . . . . . . . . 33 Sneak Attacks 12 | . . . . . . . . 12 . . . . . . . . . . . . . . . . . . . . . Combat Hostiles . | . . . . . . . . . . . . . . . . . . . . . . . . . . . . . . Follow-up Attacks 8 | . . . . . . . . . . . . . . . . . . . . . . . . . . . . . 8 Damage Inflicted 51368 | 22 936 164 1246 589 . 327 2573 1680 4824 852 . 2863 2493 2250 1533 478 628 795 287 50 2211 1123 1737 4622 . 2700 1626 6124 6635 Guns 16802 | 22 477 97 524 276 . 99 1299 740 2216 337 . 522 . . . 116 443 795 287 50 2211 316 1561 2016 . 723 510 1165 . Cannons 14474 | . 332 67 722 160 . 10 9 8 365 313 . 708 1107 1302 1504 135 . . . . . . . 394 . 694 1116 2885 2643 Explosions 18361 | . 127 . . 153 . 218 1265 932 2240 202 . 1633 1386 883 . 227 169 . . . . 802 176 2212 . 1283 . 2074 2379 Melee 1590 | . . . . . . . . . . . . . . . . . . . . . . . . . . . . . 1590 Ramming 141 | . . . . . . . . . 3 . . . . 65 29 . 16 . . . . 5 . . . . . . 23 Kinetic 9539 | . 342 . 311 62 . 34 779 660 826 408 . 633 473 273 334 30 . . . . 298 50 447 979 . 755 46 829 970 Thermal 17681 | 22 448 164 596 160 . . 190 80 1122 153 . 219 634 1912 1170 182 443 795 287 50 1913 367 1114 1075 . 199 102 3031 1253 Explosive 7196 | . . . . . . . . . 29 . . 984 1386 . . 227 169 . . . . 643 176 1923 . 1283 . 84 292 Electromagnetic 13132 | . 146 . 339 367 . 293 1604 940 2844 291 . 1027 . . . 39 . . . . . 58 . 645 . 356 1192 484 2507 Impact . | . . . . . . . . . . . . . . . . . . . . . . . . . . . . . . Slashing 313 | . . . . . . . . . . . . . . . . . . . . . . . . . . . . . 313 Piercing 1277 | . . . . . . . . . . . . . . . . . . . . . . . . . . . . . 1277 Entropic 2089 | . . . . . . . . . . . . . . . . . . . . . . . . . . 107 286 1696 . Highest Corruption 33 | . 1 2 3 3 3 5 7 13 10 10 10 5 18 16 6 2 2 2 . . . . 1 13 7 7 . 11 33 Average Corruption 5 | . 1 1 2 3 3 4 4 10 7 10 10 3 11 12 2 2 2 1 . . . . 1 7 7 4 . 7 10 Corruption Purged 38 | . . . . . . . . . . . . 2 2 10 4 . . 2 . . . . . 6 . 5 . 5 2 Effects 443 | . 3 8 16 8 26 12 36 33 28 35 21 13 13 46 17 4 5 2 . . . . 3 28 9 18 . 31 28 Message Errors 95 | . . 7 3 . 7 4 9 3 5 7 5 3 2 7 4 . 3 1 . . . . 2 8 1 4 . 6 4 Matter Fused 82 | . . . 3 3 8 2 5 7 7 8 3 3 2 10 3 . . . . . . . . 3 3 5 . 4 3 Heat Flow Errors 43 | . . 1 . 1 5 1 5 2 3 3 2 1 2 7 1 1 . . . . . . . 2 2 . . 2 2 Energy Discharges 41 | . . . . . 4 4 3 3 3 1 1 1 1 4 1 3 1 1 . . . . . 3 . 4 . 2 1 Parts Rejected 3 | . . . . . . . . . . . . . . . 1 . . . . . . . . . . 1 . . 1 Data Loss (minor) 55 | . 3 . 2 3 2 1 6 4 4 5 1 2 1 2 5 . 1 . . . . . . 2 3 1 . 4 3 Data Loss (major) 9 | . . . . . . . . . 1 1 1 . . 4 . . . . . . . . . . . . . 2 . Misfires 5 | . . . . . . . . . 1 1 1 . . 2 . . . . . . . . . . . . . . . Alerts 5 | . . . . . . . . 1 1 . 1 . . . . . . . . . . . . . . . . 1 1 Misdirections 22 | . . . . . . . . 2 1 3 6 . . 5 . . . . . . . . . 1 . . . 1 3 Targeting Errors 78 | . . . 7 1 . . 7 11 2 5 . 3 5 5 2 . . . . . . . 1 8 . 3 . 9 9 Weapon Failures 5 | . . . 1 . . . 1 . . 1 . . . . . . . . . . . . . 1 . . . . 1 Overload Shots 5 | . . . . . . . . . . . . . . . . . . 3 . . . 2 . . . . . . . Overflow Damage 1010 | . 27 4 . 9 . . 41 4 110 11 . 69 6 190 29 68 . . . . . . 3 95 . 85 34 129 96 Projectiles 190 | . 1 4 . . . . . . 1 9 . 26 . 5 29 . . . . . . . . . . 6 34 63 12 Explosions 709 | . 26 . . 9 . . 41 4 109 2 . 43 6 158 . 68 . . . . . . 3 95 . 79 . 66 . Melee 111 | . . . . . . . . . . . . . . 27 . . . . . . . . . . . . . . 84 Knockbacks 42 | . 6 . . . . . . . . 4 . 8 . 4 2 . 1 . . . . . . . . . . 8 9 Impact 2 | . . . . . . . . . . . . . . 1 . . 1 . . . . . . . . . . . . Kinetic 38 | . 5 . . . . . . . . 4 . 8 . 3 2 . . . . . . . . . . . . 8 8 Secondary 2 | . 1 . . . . . . . . . . . . . . . . . . . . . . . . . . . 1 Self-Inflicted Damage 1045 | . 86 . . . . 27 96 . 189 17 . 80 35 37 . . . . . . . 64 . 76 . . . 91 247 Shots 26 | . 2 . . . . 1 2 . 5 1 . 4 2 1 . . . . . . . 1 . 3 . . . 1 3 Rammed 19 | . . . . . . . . . 1 . . . . 3 5 . 3 . . . . 1 . . . . . . 6 Targets Rammed 20 | . . . . . . . . . 1 . . . . 3 5 . 3 . . . . 1 . . . . . . 7 Kicked . | . . . . . . . . . . . . . . . . . . . . . . . . . . . . . . Crushed 1 | . . . . . . . . . . . . . . . . . . . . . . . . . . . . . 1 Highest Temperature 610 | 60 226 216 340 370 243 278 286 265 306 372 89 411 428 331 324 90 116 610 289 108 320 294 384 338 178 77 188 195 232 Average Temperature 99 | 33 76 74 104 146 102 108 63 74 80 137 40 127 84 110 81 47 52 208 124 63 121 104 156 110 108 28 100 121 114 Received Heat Transfer 4330 | . 249 27 93 60 . 18 117 153 318 99 . 243 . 129 126 12 9 27 9 24 153 105 294 564 . 285 48 . 1168 Effects 12 | . 1 . 1 . . . . . . 3 . 1 1 . . . . 2 . . . . 3 . . . . . . Shutdowns 4 | . . . . . . . . . . . . 1 1 . . . . 2 . . . . . . . . . . . Energy Bleed 2 | . . . 1 . . . . . . . . . . . . . . . . . . . 1 . . . . . . Interference 4 | . 1 . . . . . . . . 3 . . . . . . . . . . . . . . . . . . . Short Circuit 1 | . . . . . . . . . . . . . . . . . . . . . . . 1 . . . . . . Damage (minor) 1 | . . . . . . . . . . . . . . . . . . . . . . . 1 . . . . . . Siege Activations 46 | . . . . . . . . . . . . . . 4 8 3 2 2 1 . 4 2 1 6 . 5 2 2 4 Total Turns 973 | . . . . . . . . . . . . . . 101 89 31 8 48 6 . 76 28 35 161 . 79 41 118 152 Longest Duration 84 | . . . . . . . . . . . . . . 56 36 20 5 40 6 . 25 20 35 63 . 28 34 84 68 Robots Corrupted 30 | . . . . . . 1 4 1 4 1 . 3 . . . . . . . . . . . 1 . . 4 2 9 Combat Hostiles 24 | . . . . . . 1 4 1 2 1 . 3 . . . . . . . . . . . 1 . . 3 2 6 Parts Fried 78 | . . . 3 2 . 1 6 3 17 2 . 9 . . 1 . . . . . . . . 6 . 1 8 3 16 Impact Corruptions 2 | . . . . . . . . . . . . . . 2 . . . . . . . . . . . . . . . Robots Melted 2 | . . . . . . . . . . . . . . . . . . . . . 1 . . 1 . . . . . Combat Hostiles 2 | . . . . . . . . . . . . . . . . . . . . . 1 . . 1 . . . . . Parts Melted 34 | . . . . . . . . . 2 . . . . 5 3 . 2 . 2 1 7 . 4 4 . . 1 3 . Heat Transferred 21508 | 50 1003 333 1036 259 . . 250 185 1871 222 . 322 950 2200 1800 274 555 705 296 37 1961 333 1258 1424 . 450 111 2728 895 Parts Sabotaged . | . . . . . . . . . . . . . . . . . . . . . . . . . . . . . . Parts Stolen 1 | . . . . . . . . . . 1 . . . . . . . . . . . . . . . . . . . Parts Stripped . | . . . . . . . . . . . . . . . . . . . . . . . . . . . . . . Power Chain Reactions 15 | . 1 . . . . . 3 . 6 1 . 1 . . . . . . . . . 1 . 2 . . . . . Missiles Intercepted 2 | . . . . . . . . . . . . . . . . . . . . . . . . . . . . 2 . Latent Energy Used 2202 | . . . . . . 108 400 366 631 . . 200 . . . . . . . . . . . . . . . 200 297 LE Corruption 35 | . . . . . . 2 6 6 10 . . 3 . . . . . . . . . . . . . . . 3 5 Alert | -11 -10 -10 -9 -9 -9 -8 -8 -8 -7 -7 -7 -6 -6 -6 -6 -6 -5 -5 -5 -5 -4 -4 -4 -4 -4 -3 -3 -2 -2 ------- Run | Scr Mat Min Mat Min Exi Min Mat Sto Fac Low Low Fac Was Fac Ext Cet Fac Upp Upp War Pro Fac Upp Upp Zhi Pro Res Res Tes Peak Influence 2529 | 5 381 77 333 263 . 80 361 514 1006 . . 207 136 385 534 728 784 . . . . 377 . . . . 211 764 2529 Initial 429 | . 3 37 . 85 . . . 104 177 . . 162 35 95 116 204 407 . . . . 37 . . . . 94 63 429 Average 306 | 3 131 40 229 209 . 43 106 312 591 . . 114 96 160 277 449 536 . . . . 192 . . . . 89 319 2073 Maximum Alert Level 5 | . 1 . 1 1 . . 1 2 3 . . 1 . 1 2 3 3 . . . . 1 . . . . 1 3 5 Low Security (%) 51 | 100 67 100 31 37 . 100 84 22 4 . . 76 100 72 23 . . . . . . 83 . . . . 99 60 . Level 1 25 | . 32 . 68 62 . . 15 60 23 . . 23 . 27 68 53 . . . . . 16 . . . . . 1 . Level 2 11 | . . . . . . . . 17 36 . . . . . 8 29 81 . . . . . . . . . . 19 . Level 3 7 | . . . . . . . . . 35 . . . . . . 16 18 . . . . . . . . . . 18 . Level 4 . | . . . . . . . . . . . . . . . . . . . . . . . . . . . . . . Level 5 . | . . . . . . . . . . . . . . . . . . . . . . . . . . . . . . High Security . | . . . . . . . . . . . . . . . . . . . . . . . . . . . . . . Max Security 3 | . . . . . . . . . . . . . . . . . . . . . . . . . . . . . 99 Squads Dispatched 70 | . 1 . 4 . . . 1 . 15 . . 8 . 3 6 . 4 . . . 1 2 . 1 . . 3 1 20 Investigation 14 | . . . 1 . . . . . 2 . . 1 . 1 4 . 3 . . . . . . . . . 1 1 . Extermination 5 | . . . . . . . . . 2 . . 2 . 1 . . . . . . . . . . . . . . . Reinforcement 20 | . 1 . 3 . . . 1 . 6 . . 2 . 1 2 . 1 . . . . 1 . . . . 2 . . Assault 25 | . . . . . . . . . 3 . . . . . . . . . . . 1 . . 1 . . . . 20 Garrison 6 | . . . . . . . . . 2 . . 3 . . . . . . . . . 1 . . . . . . . Intercept . | . . . . . . . . . . . . . . . . . . . . . . . . . . . . . . Construction Impeded 6 | . . . . . . . . . 1 . . 2 . 1 1 . 1 . . . . . . . . . . . . Haulers Reinforced 3 | . . . . . . . . . 2 . . . . . . . . . . . . . . . . . 1 . . Stealth | -11 -10 -10 -9 -9 -9 -8 -8 -8 -7 -7 -7 -6 -6 -6 -6 -6 -5 -5 -5 -5 -4 -4 -4 -4 -4 -3 -3 -2 -2 --------- Run | Scr Mat Min Mat Min Exi Min Mat Sto Fac Low Low Fac Was Fac Ext Cet Fac Upp Upp War Pro Fac Upp Upp Zhi Pro Res Res Tes Distress Signals 37 | . 1 . 5 1 . . 2 2 2 . . . . . 6 2 1 . . . . 2 . . . . 7 5 1 Communications Jammed . | . . . . . . . . . . . . . . . . . . . . . . . . . . . . . . Distress Signals . | . . . . . . . . . . . . . . . . . . . . . . . . . . . . . . Times Spotted 540 | . 27 4 36 7 . 5 29 16 59 6 . 18 6 9 25 17 11 7 3 21 13 9 8 32 . 14 19 36 103 Peak Tracking Total 35 | . 5 2 8 3 . 3 6 4 6 2 . 6 2 4 5 5 5 5 2 12 6 6 4 7 . 5 5 7 35 Tactical Retreats 32 | . 6 . 2 1 . 1 1 . 2 1 . 3 . . 2 1 2 1 . 1 . . . 2 . . . 1 5 Traps | -11 -10 -10 -9 -9 -9 -8 -8 -8 -7 -7 -7 -6 -6 -6 -6 -6 -5 -5 -5 -5 -4 -4 -4 -4 -4 -3 -3 -2 -2 ------- Run | Scr Mat Min Mat Min Exi Min Mat Sto Fac Low Low Fac Was Fac Ext Cet Fac Upp Upp War Pro Fac Upp Upp Zhi Pro Res Res Tes Traps Triggered 12 | . 1 1 3 . . . 1 1 2 . . 1 . . 1 . 1 . . . . . . . . . . . . Indirectly . | . . . . . . . . . . . . . . . . . . . . . . . . . . . . . . Trap Hack Attempts . | . . . . . . . . . . . . . . . . . . . . . . . . . . . . . . Triggered . | . . . . . . . . . . . . . . . . . . . . . . . . . . . . . . Disarmed . | . . . . . . . . . . . . . . . . . . . . . . . . . . . . . . Reprogrammed . | . . . . . . . . . . . . . . . . . . . . . . . . . . . . . . Reused . | . . . . . . . . . . . . . . . . . . . . . . . . . . . . . . Traps Extracted . | . . . . . . . . . . . . . . . . . . . . . . . . . . . . . . Installed . | . . . . . . . . . . . . . . . . . . . . . . . . . . . . . . Triggered 12 | . . . . . . . . . 1 . . . . . . . . . . 11 . . . . . . . . . Machines | -11 -10 -10 -9 -9 -9 -8 -8 -8 -7 -7 -7 -6 -6 -6 -6 -6 -5 -5 -5 -5 -4 -4 -4 -4 -4 -3 -3 -2 -2 ---------- Run | Scr Mat Min Mat Min Exi Min Mat Sto Fac Low Low Fac Was Fac Ext Cet Fac Upp Upp War Pro Fac Upp Upp Zhi Pro Res Res Tes Machines Disabled 54 | . 3 . 2 1 . . 2 5 13 . . 2 . 6 2 1 3 . . . 1 5 . 2 . . . 3 3 Max in Single Turn 5 | . 2 . 1 1 . . 1 3 4 . . 1 . 5 1 . 1 . . . 1 2 . 1 . . . 1 2 Garrison Access 4 | . . . . . . . . . 1 . . 1 . . . . . . . . . . . . . . . 2 . Machines Sabotaged . | . . . . . . . . . . . . . . . . . . . . . . . . . . . . . . Garrisons Compromised . | . . . . . . . . . . . . . . . . . . . . . . . . . . . . . . Overloaded Fab Kills . | . . . . . . . . . . . . . . . . . . . . . . . . . . . . . . Fab Network Shutdowns . | . . . . . . . . . . . . . . . . . . . . . . . . . . . . . . Hacking | -11 -10 -10 -9 -9 -9 -8 -8 -8 -7 -7 -7 -6 -6 -6 -6 -6 -5 -5 -5 -5 -4 -4 -4 -4 -4 -3 -3 -2 -2 --------- Run | Scr Mat Min Mat Min Exi Min Mat Sto Fac Low Low Fac Was Fac Ext Cet Fac Upp Upp War Pro Fac Upp Upp Zhi Pro Res Res Tes Machines Accessed 77 | . 7 1 2 1 . . 4 7 9 . 1 8 . 4 11 . 5 . . 2 . 2 1 1 8 . 2 1 . Terminals 59 | . 7 . 2 1 . . 3 7 8 . . 7 . 4 11 . 5 . . . . 2 . . . . 1 1 . Fabricators 1 | . . . . . . . . . . . . . . . . . . . . . . . . . . . 1 . . Repair Stations . | . . . . . . . . . . . . . . . . . . . . . . . . . . . . . . Recycling Units . | . . . . . . . . . . . . . . . . . . . . . . . . . . . . . . Scanalyzers . | . . . . . . . . . . . . . . . . . . . . . . . . . . . . . . Garrison Access 3 | . . . . . . . 1 . 1 . . 1 . . . . . . . . . . . . . . . . . Total Hacks 186 | . 20 1 10 3 . . 11 18 18 . 1 18 . 7 21 . 17 . . 3 . 8 1 2 21 . 4 2 . Successful 96 | . 6 1 4 2 . . 5 11 5 . 1 7 . 4 10 . 7 . . 3 . 5 1 2 21 . 1 . . Failed 90 | . 14 . 6 1 . . 6 7 13 . . 11 . 3 11 . 10 . . . . 3 . . . . 3 2 . Catastrophic 26 | . 4 . 3 . . . . 3 2 . . 3 . 2 4 . 3 . . . . 1 . . . . 1 . . Database Lockouts . | . . . . . . . . . . . . . . . . . . . . . . . . . . . . . . Manual 85 | . 12 . 7 2 1 . 7 13 6 . . 10 . 3 3 1 11 . . . . 6 . . . . 3 . . Terminals 151 | . 20 . 10 3 . . 10 18 17 . . 17 . 7 21 . 17 . . . . 8 . . . . 1 2 . Fabricators 3 | . . . . . . . . . . . . . . . . . . . . . . . . . . . 3 . . Repair Stations . | . . . . . . . . . . . . . . . . . . . . . . . . . . . . . . Recycling Units . | . . . . . . . . . . . . . . . . . . . . . . . . . . . . . . Scanalyzers . | . . . . . . . . . . . . . . . . . . . . . . . . . . . . . . Garrison Access 3 | . . . . . . . 1 . 1 . . 1 . . . . . . . . . . . . . . . . . Terminal Hacks 72 | . 3 1 2 1 . . 3 8 3 . 1 3 . 3 9 . 5 . . 3 . 3 1 2 21 . . . . Record 14 | . . . . . . . . . . . . . . . . . . . . 2 . 1 . 2 9 . . . . Part Schematic 4 | . . . . . . . . . . . . . . . . . . . . . . . . . 4 . . . . Robot Analysis 4 | . . . . . . . . . . . . . . . . . . . . . . . . . 4 . . . . Prototype ID Bank 4 | . . . . . . . . . . . . . . . . . . . . . . . . . 4 . . . . Open Door 13 | . . 1 . . . . . 1 . . 1 . . 1 7 . . . . 1 . . 1 . . . . . . Branch Access Points 5 | . . . . . . . 1 . 1 . . . . 1 . . 1 . . . . 1 . . . . . . . Terminal Index 1 | . . . . . . . . . . . . 1 . . . . . . . . . . . . . . . . . Alert Level 9 | . 1 . . . . . 1 2 1 . . . . 1 1 . 1 . . . . 1 . . . . . . . Unreport Threat 9 | . 1 . . . . . 1 1 1 . . 1 . . 1 . 3 . . . . . . . . . . . . Locate Traps 1 | . . . . . . . . . . . . 1 . . . . . . . . . . . . . . . . . Dispatch Records 1 | . . . . . . . . 1 . . . . . . . . . . . . . . . . . . . . . Hauler Manifests 3 | . 1 . 1 . . . . 1 . . . . . . . . . . . . . . . . . . . . . Registered Components 2 | . . . 1 . . . . 1 . . . . . . . . . . . . . . . . . . . . . Zone Layout 2 | . . . . 1 . . . 1 . . . . . . . . . . . . . . . . . . . . . Fabricator Hacks 1 | . . . . . . . . . . . . . . . . . . . . . . . . . . . 1 . . Load Schematic 1 | . . . . . . . . . . . . . . . . . . . . . . . . . . . 1 . . Repair Station Hacks . | . . . . . . . . . . . . . . . . . . . . . . . . . . . . . . Recycling Unit Hacks . | . . . . . . . . . . . . . . . . . . . . . . . . . . . . . . Scanalyzer . | . . . . . . . . . . . . . . . . . . . . . . . . . . . . . . Garrison Access Hacks 2 | . . . . . . . . . 1 . . 1 . . . . . . . . . . . . . . . . . Seal Access 2 | . . . . . . . . . 1 . . 1 . . . . . . . . . . . . . . . . . Unauthorized Hacks 21 | . 3 . 2 1 . . 2 3 1 . . 3 . 1 1 . 2 . . . . 2 . . . . . . . Terminals 21 | . 3 . 2 1 . . 2 3 1 . . 3 . 1 1 . 2 . . . . 2 . . . . . . . Track 2 | . . . 1 1 . . . . . . . . . . . . . . . . . . . . . . . . . Assimilate 1 | . . . . . . . . . . . . . . 1 . . . . . . . . . . . . . . . Botnet 17 | . 2 . 1 . . . 2 3 1 . . 3 . . 1 . 2 . . . . 2 . . . . . . . Operators 1 | . 1 . . . . . . . . . . . . . . . . . . . . . . . . . . . . Fabricators . | . . . . . . . . . . . . . . . . . . . . . . . . . . . . . . Repair Stations . | . . . . . . . . . . . . . . . . . . . . . . . . . . . . . . Recycling Units . | . . . . . . . . . . . . . . . . . . . . . . . . . . . . . . Scanalyzers . | . . . . . . . . . . . . . . . . . . . . . . . . . . . . . . Garrison Access . | . . . . . . . . . . . . . . . . . . . . . . . . . . . . . . Data Cores Recovered 3 | . . . . . . . . . . . . . . 1 . . 2 . . . . . . . . . . . . Used 2 | . . . . . . . . . . . . . . . . . 2 . . . . . . . . . . . . Hacking Detections 57 | . 7 . 2 1 . . 4 5 8 . . 7 . 3 9 1 5 . . . . 2 . . . . 2 1 . Full Trace Events 10 | . . . 1 . . . . . . . . 1 . 1 4 . 3 . . . . . . . . . . . . Feedback Events . | . . . . . . . . . . . . . . . . . . . . . . . . . . . . . . Feedback Blocked . | . . . . . . . . . . . . . . . . . . . . . . . . . . . . . . Robot Schematics Acquired . | . . . . . . . . . . . . . . . . . . . . . . . . . . . . . . Robots Built . | . . . . . . . . . . . . . . . . . . . . . . . . . . . . . . Matter . | . . . . . . . . . . . . . . . . . . . . . . . . . . . . . . Time . | . . . . . . . . . . . . . . . . . . . . . . . . . . . . . . Total Robot Build Rating . | . . . . . . . . . . . . . . . . . . . . . . . . . . . . . . Part Schematics Acquired 4 | . . . . . . . . . . . . . . . . . . . . . . . . . 4 . . . . Parts Built . | . . . . . . . . . . . . . . . . . . . . . . . . . . . . . . Matter . | . . . . . . . . . . . . . . . . . . . . . . . . . . . . . . Time . | . . . . . . . . . . . . . . . . . . . . . . . . . . . . . . Total Part Build Rating . | . . . . . . . . . . . . . . . . . . . . . . . . . . . . . . Parts Repaired . | . . . . . . . . . . . . . . . . . . . . . . . . . . . . . . Time . | . . . . . . . . . . . . . . . . . . . . . . . . . . . . . . Parts Recycled . | . . . . . . . . . . . . . . . . . . . . . . . . . . . . . . Recycled Matter . | . . . . . . . . . . . . . . . . . . . . . . . . . . . . . . Retrieved Matter . | . . . . . . . . . . . . . . . . . . . . . . . . . . . . . . Retrieved Components . | . . . . . . . . . . . . . . . . . . . . . . . . . . . . . . Parts Scanalyzed . | . . . . . . . . . . . . . . . . . . . . . . . . . . . . . . Part Schematics Acquired . | . . . . . . . . . . . . . . . . . . . . . . . . . . . . . . Parts Damaged . | . . . . . . . . . . . . . . . . . . . . . . . . . . . . . . Bothacking | -11 -10 -10 -9 -9 -9 -8 -8 -8 -7 -7 -7 -6 -6 -6 -6 -6 -5 -5 -5 -5 -4 -4 -4 -4 -4 -3 -3 -2 -2 ------------ Run | Scr Mat Min Mat Min Exi Min Mat Sto Fac Low Low Fac Was Fac Ext Cet Fac Upp Upp War Pro Fac Upp Upp Zhi Pro Res Res Tes Used RIF Installer . | . . . . . . . . . . . . . . . . . . . . . . . . . . . . . . Robots Hacked . | . . . . . . . . . . . . . . . . . . . . . . . . . . . . . . Non-combat . | . . . . . . . . . . . . . . . . . . . . . . . . . . . . . . Combat . | . . . . . . . . . . . . . . . . . . . . . . . . . . . . . . Robot Hacks Applied . | . . . . . . . . . . . . . . . . . . . . . . . . . . . . . . Relay Couplers Released 9 | . . . . . . . . . . . . 1 . . . . . . . . . . . . . . . 8 . Machine Destruction 3 | . . . . . . . . . . . . 1 . . . . . . . . . . . . . . . 2 . Programmers 6 | . . . . . . . . . . . . . . . . . . . . . . . . . . . . 6 . Robots Rewired 20 | . . . . . . . . 7 . . . . . . 13 . . . . . . . . . . . . . . Allies Hacked . | . . . . . . . . . . . . . . . . . . . . . . . . . . . . . . Hacks Repelled . | . . . . . . . . . . . . . . . . . . . . . . . . . . . . . . Allies | -11 -10 -10 -9 -9 -9 -8 -8 -8 -7 -7 -7 -6 -6 -6 -6 -6 -5 -5 -5 -5 -4 -4 -4 -4 -4 -3 -3 -2 -2 -------- Run | Scr Mat Min Mat Min Exi Min Mat Sto Fac Low Low Fac Was Fac Ext Cet Fac Upp Upp War Pro Fac Upp Upp Zhi Pro Res Res Tes Total Allies 44 | . . 4 . . . . . 10 . . . . . . 25 5 . . . . . . . . . . . . . Largest Group 10 | . . 3 2 . . . . 10 7 . . . . . 10 10 5 3 1 1 . . . . . . . . . Highest-Rated Group 719 | . . 47 47 . . . . 173 125 . . . . . 346 719 447 270 94 94 . . . . . . . . . Highest-Rated Ally 156 | . . 31 31 . . . . 29 29 . . . . . 156 156 140 94 94 94 . . . . . . . . . Total Orders . | . . . . . . . . . . . . . . . . . . . . . . . . . . . . . . Ally Attacks 458 | . . 13 14 . . . . 46 69 . . . . . 123 106 64 19 1 3 . . . . . . . . . Total Damage 9702 | . . 185 219 . . . . 585 813 . . . . . 2075 2908 2175 652 . 90 . . . . . . . . . Kills 87 | . . 2 6 . . . . 6 11 . . . . . 22 18 17 4 . 1 . . . . . . . . . Allies Corrupted . | . . . . . . . . . . . . . . . . . . . . . . . . . . . . . . Allies Melted . | . . . . . . . . . . . . . . . . . . . . . . . . . . . . . . Intel | -11 -10 -10 -9 -9 -9 -8 -8 -8 -7 -7 -7 -6 -6 -6 -6 -6 -5 -5 -5 -5 -4 -4 -4 -4 -4 -3 -3 -2 -2 ------- Run | Scr Mat Min Mat Min Exi Min Mat Sto Fac Low Low Fac Was Fac Ext Cet Fac Upp Upp War Pro Fac Upp Upp Zhi Pro Res Res Tes Robot Analysis Total 4 | . . . . . . . . . . . . . . . . . . . . . . . . . 4 . . . . Derelict Logs Recovered 9 | . . 2 . 1 . . . . . . 2 . . . . . . 2 1 . . . . 1 . . . . . Drone Launches . | . . . . . . . . . . . . . . . . . . . . . . . . . . . . . . Drone Recoveries . | . . . . . . . . . . . . . . . . . . . . . . . . . . . . . . Decoded 0b10 Intel 9 | . . . . . . . . . . . . . . . . . . . . . . 9 . . . . . . . Traps 8 | . . . . . . . . . . . . . . . . . . . . . . 8 . . . . . . . Garrisons 1 | . . . . . . . . . . . . . . . . . . . . . . 1 . . . . . . . Exploration | -11 -10 -10 -9 -9 -9 -8 -8 -8 -7 -7 -7 -6 -6 -6 -6 -6 -5 -5 -5 -5 -4 -4 -4 -4 -4 -3 -3 -2 -2 ------------- Run | Scr Mat Min Mat Min Exi Min Mat Sto Fac Low Low Fac Was Fac Ext Cet Fac Upp Upp War Pro Fac Upp Upp Zhi Pro Res Res Tes Turns Passed 23518 | 65 930 1034 1244 411 850 489 1227 578 2125 724 458 1378 188 857 1019 395 524 1245 644 799 775 349 633 829 317 722 773 1469 467 Spaces Moved 12748 | 51 697 614 589 196 489 271 709 363 1286 394 284 676 72 422 407 179 286 733 377 472 403 179 340 376 191 331 401 799 161 Core 53 | 3 . . . . . . . . . . . 7 . . . . . . . . . . . . . . . . 43 Treads 10057 | . 2 462 589 196 489 271 246 . 677 394 284 386 52 422 407 179 286 733 377 472 403 179 340 376 191 331 401 799 113 Legs . | . . . . . . . . . . . . . . . . . . . . . . . . . . . . . . Wheels 2638 | 48 695 152 . . . . 463 363 609 . . 283 20 . . . . . . . . . . . . . . . 5 Hover . | . . . . . . . . . . . . . . . . . . . . . . . . . . . . . . Flight . | . . . . . . . . . . . . . . . . . . . . . . . . . . . . . . Fastest Speed 50 | 50 80 110 172 172 172 172 100 100 100 160 160 50 105 160 160 160 160 160 160 160 160 160 160 160 160 160 145 145 50 Average Speed 148 | 78 96 156 172 172 172 172 120 100 131 160 160 137 144 160 160 160 160 160 160 160 160 160 160 160 160 174 151 152 130 Slowest Speed 250 | 80 180 172 172 172 172 172 172 100 160 160 160 160 160 160 160 160 160 160 160 160 160 160 160 160 160 180 163 158 250 Overloaded Moves . | . . . . . . . . . . . . . . . . . . . . . . . . . . . . . . Propulsion Burnouts . | . . . . . . . . . . . . . . . . . . . . . . . . . . . . . . Robots Hopped . | . . . . . . . . . . . . . . . . . . . . . . . . . . . . . . Cave-ins Triggered 1 | . . . . . . . . . . . . . . . . . . . . . . . . . . . . . 1 Teleports 1 | . . . . . . . . . . . . . . . . . . . . . . . . . 1 . . . . Exploration Rate (%) 52 | 4 96 96 54 39 89 78 60 66 48 68 37 19 77 12 65 70 9 81 62 81 64 9 54 64 62 59 13 21 23 Regions Visited 29 Branch Regions 18 Pre-discovered Areas 6 | . . . . . . . . . . . . . . . . . . . 1 . . . . 2 3 . . . . Known Exits Taken 7 | . . . . . . 1 1 . 1 . . . . 1 . 1 1 . . . . 1 . . . . . . . Unknown Exits Taken 20 | 1 1 1 1 1 1 . . 1 . 1 1 . . . 1 . . 1 1 1 1 . 1 1 1 1 1 1 . Scrap Searched 12 | . . . . 1 . 1 . . . 3 . . . . . . . . 3 . . . 1 2 . 1 . . . Spaces Dug 16 | . . . 1 . . . . . 1 . . 1 . 1 10 . . . . . . 2 . . . . . . . Terrain Destroyed 999 | . 43 . 6 1 . . 64 23 155 9 . 63 113 19 23 18 8 . 4 . 19 47 40 128 . 72 . 70 74 Melee 4 | . . . 1 . . . . . 1 . . 1 . 1 . . . . . . . . . . . . . . . Projectile 143 | . . . 5 1 . . . . 1 3 . 3 2 6 23 . 2 . 4 . 19 2 8 32 . 8 . 17 7 AOE 852 | . 43 . . . . . 64 23 153 6 . 59 111 12 . 18 6 . . . . 45 32 96 . 64 . 53 67 Terrain Rammed . | . . . . . . . . . . . . . . . . . . . . . . . . . . . . . . Walls Destroyed . | . . . . . . . . . . . . . . . . . . . . . . . . . . . . . . Machines Disabled . | . . . . . . . . . . . . . . . . . . . . . . . . . . . . . . Actions | -11 -10 -10 -9 -9 -9 -8 -8 -8 -7 -7 -7 -6 -6 -6 -6 -6 -5 -5 -5 -5 -4 -4 -4 -4 -4 -3 -3 -2 -2 --------- Run | Scr Mat Min Mat Min Exi Min Mat Sto Fac Low Low Fac Was Fac Ext Cet Fac Upp Upp War Pro Fac Upp Upp Zhi Pro Res Res Tes Total 15844 | 68 849 678 722 232 499 280 970 529 1581 450 288 1030 112 561 711 280 333 792 409 517 473 220 381 488 202 415 526 950 298 Wait 1279 | . 39 28 37 2 . . 145 94 140 18 3 217 5 89 109 53 16 46 10 . 43 20 5 29 . 23 34 42 32 Move 12719 | 50 696 613 588 195 488 270 708 362 1285 393 283 676 71 421 406 178 285 732 376 471 402 178 339 375 190 330 400 798 160 Hop . | . . . . . . . . . . . . . . . . . . . . . . . . . . . . . . Pick Up 283 | 9 21 12 18 6 1 2 14 7 26 2 2 33 1 8 5 14 6 2 5 15 . 2 3 8 8 12 23 17 1 Fast Attach 110 | 6 3 1 4 . 4 . 9 5 7 2 . 19 3 3 4 6 . . 4 2 . 1 . . 2 1 6 12 6 Attach 122 | 1 4 1 5 3 . . 6 3 12 2 . 16 . 1 . 2 2 2 1 2 1 2 4 17 . 14 2 8 11 Detach 12 | . . . . . . . . 1 2 . . 1 4 . . . . . . . . . . . . 2 . . 2 Swap 173 | . 14 3 8 4 . 2 11 5 23 9 . 15 1 5 2 7 8 2 2 8 . 8 5 8 1 4 9 5 4 Drop 243 | . 17 13 16 4 6 . 15 12 18 6 . 8 6 11 9 15 5 2 7 17 . . 1 . 1 1 29 20 4 Fire 683 | 2 55 7 44 18 . 6 62 27 66 18 . 42 21 19 34 5 8 6 4 1 27 8 24 51 . 28 23 48 29 Melee 52 | . . . 2 . . . . 12 1 . . 3 . 1 . . . . . . . . . . . . . . 33 Ram 2 | . . . . . . . . 1 . . . . . . . . . . . . . . . . . . . . 1 Kick . | . . . . . . . . . . . . . . . . . . . . . . . . . . . . . . Crush 20 | . . . . . . . . . 1 . . . . 3 5 . 3 . . . . 1 . . . . . . 7 Escape Stasis 8 | . . . . . . . . . . . . . . . . . . . . . . . . . . . . . 8 Rewire 138 | . . . . . . . . . . . . . . . 137 . . . . 1 . . . . . . . . . Trap . | . . . . . . . . . . . . . . . . . . . . . . . . . . . . . . Miscellaneous . | . . . . . . . . . . . . . . . . . . . . . . . . . . . . . . Route ------- -11/Scrapyard -10/Materials (discovered 4 exits: *Mat x3 / *Min) -10/Mines (discovered 2 exits: *Mat x2) -9/Materials (discovered 4 exits: *Mat x2 / *Min x2) -9/Mines (discovered 3 exits: *Mat x2 / *Exi) -9/Exiles -8/Mines -8/Materials (discovered 4 exits: *Fac x2 / *Sto x2) -8/Storage -7/Factory (discovered 4 exits: *Fac x2 / *Low x2) -7/Lower Caves -7/Lower Caves -6/Factory -6/Waste -6/Factory (discovered 4 exits: Low x2 / *Ext x2) -6/Extension (discovered 2 exits: *Fac / *Cet) -6/Cetus (discovered 2 exits: *Fac / [*Arc]) -5/Factory (discovered 2 exits: *Upp x2) -5/Upper Caves -5/Upper Caves -5/Warlord -4/Proximity Caves -4/Factory (discovered 2 exits: *Upp x2) -4/Upper Caves -4/Upper Caves -4/Zhirov -3/Proximity Caves -3/Research -2/Research -2/Testing History --------- Turn | Location | Event 17 | -11/Scrapyard | Discovered new exit (range 15) 66 | -11/Scrapyard | Entered Materials 233 | -10/Materials | Discovered new exit (range 15) 306 | -10/Materials | Build established: Mutant 411 | -10/Materials | Discovered new exit (range 16) 829 | -10/Materials | Core integrity fell below 50% 898 | -10/Materials | Discovered new exit (range 10) 926 | -10/Materials | Discovered new exit (range 14) 996 | -10/Materials | Entered Mines 1046 | -10/Mines | Assisted by bots powering up and referring to "LRC-V3" 1110 | -10/Mines | Joined a pair of Derelicts in attacking an 0b10 outpost 1142 | -10/Mines | Discovered new exit (range 2) 1173 | -10/Mines | Met a Derelict who couldn't figure out how to use a Trap Extractor 1594 | -10/Mines | Found a damaged Exp. Sensor Array with a note attached 1598 | -10/Mines | Found Prototype Device 1649 | -10/Mines | Learned Materials security intel 1740 | -10/Mines | Discovered new exit (range 14) 1807 | -10/Mines | Learned 2 Materials zone layouts 2010 | -10/Mines | Received a Mining Laser from a helpful Derelict 2030 | -10/Mines | Entered Materials 2030 | -9/Materials | Accompanied by 2 allies 2030 | -9/Materials | Evolved 2 slots: Utility x1, Weapon x1 2031 | -9/Materials | Identified exit to Materials 2566 | -9/Materials | Build established: Hauler-Gunner 2860 | -9/Materials | Discovered new exit (range 13) 2957 | -9/Materials | Discovered exit to Materials (range 3) 3162 | -9/Materials | Discovered new exit (range 9) 3274 | -9/Materials | Entered Mines 3370 | -9/Mines | Discovered exit to Materials (range 8) 3374 | -9/Mines | Assembled infested the area 3462 | -9/Mines | Discovered exit to Materials (range 13) 3623 | -9/Mines | Learned Materials security intel 3677 | -9/Mines | Deemed a non-threat by the Exiles lab entrance 3679 | -9/Mines | Discovered new exit (range 5) 3685 | -9/Mines | Entered Exiles 3728 | -9/Exiles | Met 8R-AWN 3758 | -9/Exiles | Met EX-HEX 3801 | -9/Exiles | Build established: Tank 3827 | -9/Exiles | Met EX-DEC 3895 | -9/Exiles | Visited The Gauntlet 4160 | -9/Exiles | Discovered new exit (range 11) 4262 | -9/Exiles | Met EX-BIN 4286 | -9/Exiles | Aligned with FarCom system 4287 | -9/Exiles | Given EX-Vault access code 4341 | -9/Exiles | Opened EX-Vault 4353 | -9/Exiles | Found Prototype Ballistic Cannon 4353 | -9/Exiles | Identified AWS/Autocannon 4360 | -9/Exiles | Found Prototype Energy Cannon 4360 | -9/Exiles | Identified Latent Energy Streamer 4413 | -9/Exiles | Warned to stay clear of 0b10 Research branches 4535 | -9/Exiles | Left Exiles lab with Latent Energy Streamer 4535 | -9/Exiles | Entered Mines 4964 | -8/Mines | Discovered exit to Materials (range 15) 5005 | -8/Mines | Build established: Skirmisher 5024 | -8/Mines | Entered Materials 5024 | -8/Materials | Evolved 2 slots: Propulsion x1, Utility x1 5162 | -8/Materials | Discovered new exit (range 10) 5440 | -8/Materials | Discovered new exit (range 16) 5830 | -8/Materials | Discovered new exit (range 15) 6003 | -8/Materials | Lost 3 parts (1p1u1w) 6113 | -8/Materials | Identified exit to Storage 6251 | -8/Materials | Entered Storage 6298 | -8/Storage | Build established: Gunner 6519 | -8/Storage | System corruption reached 10% 6573 | -8/Storage | Assisted by bots powering up and referring to "LRC-V3" 6713 | -8/Storage | Discovered new exit (range 16) 6829 | -8/Storage | Entered Factory 6829 | -7/Factory | Accompanied by 7 allies 6829 | -7/Factory | Evolved 2 slots: Propulsion x1, Utility x1 6922 | -7/Factory | Garrison activated, responded to threat 6984 | -7/Factory | Build established: Commander-Gunner 7079 | -7/Factory | Found Prototype Launcher 7115 | -7/Factory | Discovered new exit (range 13) 7525 | -7/Factory | Build established: Gunner 7700 | -7/Factory | Lost 4 parts (2n2w) 8029 | -7/Factory | First assault squad dispatched 8150 | -7/Factory | Garrison activated, responded to threat 8156 | -7/Factory | Build established: Hauler-Gunner 8502 | -7/Factory | System corruption reached 10% 8504 | -7/Factory | Discovered new exit (range 11) 8892 | -7/Factory | Identified exit to Lower Caves 8954 | -7/Factory | Entered Lower Caves 9265 | -7/Lower Caves | Spotted B-75 Beast 9368 | -7/Lower Caves | Med. Treads stolen by Master Thief 9662 | -7/Lower Caves | Discovered new exit (range 10) 9678 | -7/Lower Caves | Entered another Lower Caves area 9697 | -7/Lower Caves | Learned Factory garrison access intel 9939 | -7/Lower Caves | Discovered new exit (range 14) 10021 | -7/Lower Caves | Learned location of 1 exit from Factory 10136 | -7/Lower Caves | Entered Factory 10136 | -6/Factory | Evolved 2 slots: Utility x2 10137 | -6/Factory | Identified exit to Factory 10138 | -6/Factory | Loaded intel: 4 garrison access locations 10502 | -6/Factory | Garrison activated, responded to threat 10548 | -6/Factory | Identified Exp. Sensor Array 10894 | -6/Factory | Destroyed 7 combat bots 10900 | -6/Factory | Released all parts (10) 10924 | -6/Factory | Lost 9 parts (1p4n2u2w) 10989 | -6/Factory | Identified Rocket Array 11049 | -6/Factory | Lost 10 parts (1p4n5w) 11161 | -6/Factory | Build established: Scavenger-Mutant 11514 | -6/Factory | Sucked down chute 11514 | -6/Factory | Entered Waste 11529 | -6/Waste | EMP discharged 11529 | -6/Waste | System corruption reached 10% 11530 | -6/Waste | Spotted C-40 Crusher 11531 | -6/Waste | Spotted C-40 Crusher 11540 | -6/Waste | Destroyed C-40 Crusher 11576 | -6/Waste | Spotted C-40 Crusher 11585 | -6/Waste | Destroyed C-40 Crusher 11602 | -6/Waste | Destroyed C-40 Crusher 11609 | -6/Waste | Spotted C-40 Crusher 11629 | -6/Waste | EMP discharged 11631 | -6/Waste | Destroyed C-40 Crusher 11637 | -6/Waste | Spotted C-40 Crusher 11646 | -6/Waste | Spotted C-40 Crusher 11687 | -6/Waste | Discovered new exit (range 10) 11702 | -6/Waste | Entered Factory 11946 | -6/Factory | Identified exit to Lower Caves 11946 | -6/Factory | Identified exit to Extension 12251 | -6/Factory | Build established: Hauler-Skirmisher 12559 | -6/Factory | Entered Extension 12621 | -6/Extension | Rescued a captive Derelict 12622 | -6/Extension | Rescued a captive Derelict 12680 | -6/Extension | Build established: Hauler-Tank 12970 | -6/Extension | Rescued a captive Derelict 12971 | -6/Extension | Rescued a captive Derelict 13018 | -6/Extension | Rescued a captive Derelict 13018 | -6/Extension | Rescued a captive Derelict 13232 | -6/Extension | Rescued a captive Derelict 13232 | -6/Extension | Rescued a captive Derelict 13311 | -6/Extension | Rescued a captive Derelict 13312 | -6/Extension | Rescued a captive Derelict 13342 | -6/Extension | Rescued A7 13354 | -6/Extension | Rescued a captive Derelict 13552 | -6/Extension | Discovered exit to Factory (range 10) 13554 | -6/Extension | Discovered new exit (range 6) 13578 | -6/Extension | Entered Cetus 13578 | -6/Cetus | Accompanied by 8 allies (A7) 13583 | -6/Cetus | Acquired a Cetus Manufacturing Module code from A7 13600 | -6/Cetus | Spotted Cetus Guard 13600 | -6/Cetus | Spotted Cetus Guard 13602 | -6/Cetus | Spotted Cetus Guard 13604 | -6/Cetus | Spotted Cetus Guard 13613 | -6/Cetus | Allies destroyed Cetus Guard 13615 | -6/Cetus | Allies destroyed Cetus Guard 13622 | -6/Cetus | Allies destroyed Cetus Guard 13623 | -6/Cetus | Core integrity fell below 50% 13626 | -6/Cetus | Allies destroyed Cetus Guard 13718 | -6/Cetus | Started Cetus Manufacturing Module 13743 | -6/Cetus | Manufactured an Enhanced Grunt 13768 | -6/Cetus | Manufactured an Enhanced Grunt 13793 | -6/Cetus | Manufactured an Enhanced Grunt 13818 | -6/Cetus | Manufactured an Enhanced Grunt 13843 | -6/Cetus | Manufactured an Enhanced Grunt 13849 | -6/Cetus | Discovered new exit (range 16) 13878 | -6/Cetus | Spotted Cetus Guard 13879 | -6/Cetus | Spotted Cetus Guard 13882 | -6/Cetus | Spotted Cetus Guard 13885 | -6/Cetus | Spotted Cetus Guard 13887 | -6/Cetus | Allies destroyed Cetus Guard 13893 | -6/Cetus | Allies destroyed Cetus Guard 13900 | -6/Cetus | Found Prototype Device 13900 | -6/Cetus | Identified Exp. Thermal Shield 13903 | -6/Cetus | Allies destroyed Cetus Guard 13907 | -6/Cetus | Allies destroyed Cetus Guard 13926 | -6/Cetus | Discovered exit to Factory (range 16) 13939 | -6/Cetus | Met Revision 17 13973 | -6/Cetus | Entered Factory 13973 | -5/Factory | Accompanied by 5 allies (A7) 13973 | -5/Factory | Evolved 2 slots: Utility x2 14011 | -5/Factory | Discovered new exit (range 6) 14232 | -5/Factory | Build established: Scavenger-Gunner 14344 | -5/Factory | Identified exit to Upper Caves 14497 | -5/Factory | Entered Upper Caves 14497 | -5/Upper Caves | Accompanied by 3 allies 14602 | -5/Upper Caves | Encountered a Warlord checkpoint 14779 | -5/Upper Caves | Attracted the attention of an 0b10 outpost 14819 | -5/Upper Caves | Learned Factory emergency access door positions 15142 | -5/Upper Caves | Discovered new exit (range 16) 15325 | -5/Upper Caves | Learned Factory security intel 15742 | -5/Upper Caves | Entered another Upper Caves area 15742 | -5/Upper Caves | Accompanied by 1 ally 15743 | -5/Upper Caves | Encountered a Warlord checkpoint 15880 | -5/Upper Caves | Learned location of Warlord (-5) 15896 | -5/Upper Caves | Attracted the attention of an 0b10 checkpoint 16187 | -5/Upper Caves | Discovered new exit (range 6) 16386 | -5/Upper Caves | Entered Warlord 16386 | -5/Warlord | Accompanied by 1 ally 16639 | -5/Warlord | Met Warlord 16664 | -5/Warlord | Warlord's base attacked by MAIN.C 16801 | -5/Warlord | Found Prototype Energy Gun 16802 | -5/Warlord | Identified Vortex Rifle 16806 | -5/Warlord | Found Vortex Rifle 16809 | -5/Warlord | Found Prototype Launcher 16812 | -5/Warlord | Identified Vortex Catalyst Activator 17014 | -5/Warlord | Warlord forces counterattacked 17087 | -5/Warlord | Spotted Striker 17088 | -5/Warlord | Spotted Executioner 17106 | -5/Warlord | Destroyed Executioner 17111 | -5/Warlord | Spotted B-75 Beast 17133 | -5/Warlord | Found Prototype Device 17134 | -5/Warlord | Identified Adv. Kinecellerator 17164 | -5/Warlord | Spotted Striker 17164 | -5/Warlord | Spotted Executioner 17166 | -5/Warlord | Discovered new exit (range 14) 17185 | -5/Warlord | Entered Proximity Caves 17220 | -4/Proximity Caves | Attracted the attention of an 0b10 checkpoint 17460 | -4/Proximity Caves | Attracted the attention of an 0b10 outpost 17933 | -4/Proximity Caves | Discovered new exit (range 10) 17960 | -4/Proximity Caves | Entered Factory 17960 | -4/Factory | Evolved 2 slots: Utility x2 18023 | -4/Factory | Identified exit to Upper Caves 18260 | -4/Factory | Garrison activated, responded to threat 18309 | -4/Factory | Entered Upper Caves 18458 | -4/Upper Caves | Attracted the attention of an 0b10 checkpoint 18694 | -4/Upper Caves | Discovered new exit (range 14) 18942 | -4/Upper Caves | Entered another Upper Caves area 19039 | -4/Upper Caves | Lost 3 parts (1p1n1u) 19116 | -4/Upper Caves | Attracted the attention of an 0b10 outpost 19200 | -4/Upper Caves | Destroyed 11 combat bots 19207 | -4/Upper Caves | Lost 10 parts (1n5u4w) 19283 | -4/Upper Caves | System corruption reached 10% 19365 | -4/Upper Caves | Learned Extension stockpile data 19397 | -4/Upper Caves | Encountered a Warlord checkpoint 19429 | -4/Upper Caves | Learned location of Testing (-2) 19742 | -4/Upper Caves | Discovered new exit (range 9) 19771 | -4/Upper Caves | Entered Zhirov 19771 | -4/Zhirov | Discovered new exit (range 4) 19800 | -4/Zhirov | Met Zhirov 19850 | -4/Zhirov | Found Alien Artifact 19864 | -4/Zhirov | Identified Transdimensional Reconstructor 19864 | -4/Zhirov | Warped through subspace 19975 | -4/Zhirov | Found Alien Artifact 20036 | -4/Zhirov | Learned location of Quarantine (-3) 20036 | -4/Zhirov | Learned location of Command (-1) 20045 | -4/Zhirov | Zhirov requested help retrieving the SGEMP Prototype 20088 | -4/Zhirov | Entered Proximity Caves 20236 | -3/Proximity Caves | Spotted B-86 Titan 20276 | -3/Proximity Caves | Destroyed B-86 Titan 20304 | -3/Proximity Caves | Lost 7 parts (1p2n1u3w) 20304 | -3/Proximity Caves | Found Hvy. Reflective Plating 20725 | -3/Proximity Caves | Attracted the attention of an 0b10 checkpoint 20767 | -3/Proximity Caves | Discovered new exit (range 12) 20810 | -3/Proximity Caves | Entered Research 20810 | -3/Research | Evolved 2 slots: Propulsion x2 21010 | -3/Research | Revision forces began assault on 0b10 21026 | -3/Research | Build established: Scavenger-Tank 21033 | -3/Research | Met up with Revision 17++ 21180 | -3/Research | Spotted B-86 Titan 21199 | -3/Research | Destroyed B-86 Titan 21229 | -3/Research | Discovered new exit (range 15) 21510 | -3/Research | Research terminal network offline 21583 | -3/Research | Entered another Research area 21583 | -2/Research | Warlord forces began assault on 0b10 21583 | -2/Research | Evolved 2 slots: Utility x2 21636 | -2/Research | Discovered new exit (range 13) 21662 | -2/Research | Met up with Warlord 21693 | -2/Research | Research machine network offline 21725 | -2/Research | Build established: Hauler-Tank 22007 | -2/Research | Found Exp. Focal Shield 22027 | -2/Research | Found Prototype Processor 22027 | -2/Research | Identified Exp. Signal Interpreter 22084 | -2/Research | Borebot progress halted 22086 | -2/Research | Borebot progress halted 22131 | -2/Research | Spotted Executioner 22131 | -2/Research | Spotted Executioner 22146 | -2/Research | Spotted Executioner 22167 | -2/Research | Spotted Striker 22180 | -2/Research | Destroyed Striker 22191 | -2/Research | Destroyed Executioner 22278 | -2/Research | Borebot progress halted 22361 | -2/Research | Spotted Striker 22376 | -2/Research | Spotted Striker 22379 | -2/Research | Destroyed Striker 22389 | -2/Research | Destroyed Striker 22451 | -2/Research | Spotted Striker 22464 | -2/Research | Destroyed Striker 22485 | -2/Research | Spotted Striker 22488 | -2/Research | Spotted Executioner 22489 | -2/Research | Spotted Striker 22493 | -2/Research | Spotted Executioner 22494 | -2/Research | Destroyed Executioner 22494 | -2/Research | Destroyed Striker 22515 | -2/Research | Destroyed Striker 22522 | -2/Research | Destroyed Executioner 22524 | -2/Research | System corruption reached 10% 22549 | -2/Research | Destroyed 16 combat bots 22716 | -2/Research | Warlord invited to help at Command 22772 | -2/Research | Spotted Striker 22991 | -2/Research | Found Prototype Device 22991 | -2/Research | Identified Exp. Shield Generator 23052 | -2/Research | Entered Testing 23053 | -2/Testing | Maximum security lockdown engaged 23282 | -2/Testing | Spotted Striker 23284 | -2/Testing | Spotted Striker 23292 | -2/Testing | Spotted Alpha 7 23295 | -2/Testing | Destroyed 7 combat bots 23300 | -2/Testing | Destroyed Striker 23306 | -2/Testing | Destroyed Striker 23316 | -2/Testing | Spotted Investigator 23317 | -2/Testing | Spotted Executioner 23331 | -2/Testing | Scanned by Researcher 23338 | -2/Testing | Destroyed Investigator 23356 | -2/Testing | Stole the SGEMP Prototype 23368 | -2/Testing | Identified Integrated Dissipator 23368 | -2/Testing | Installed Integrated Dissipator, increased core heat dissipation (+20) 23379 | -2/Testing | Destroyed 8 combat bots 23454 | -2/Testing | Spotted Striker 23454 | -2/Testing | Spotted Executioner 23458 | -2/Testing | Found Prototype Launcher 23458 | -2/Testing | Identified Containment Facilitator 23467 | -2/Testing | Spotted Investigator 23472 | -2/Testing | Destroyed 9 combat bots 23473 | -2/Testing | Spotted Striker 23475 | -2/Testing | Crushed by falling debris 23476 | -2/Testing | System corruption reached 30% 23480 | -2/Testing | Core integrity fell below 50% 23492 | -2/Testing | Core integrity fell below 20% 23511 | -2/Testing | Found Prototype Launcher 23511 | -2/Testing | Identified Enh. Gamma Bomb Array 23519 | -2/Testing | Destroyed by H-88 Terminator with Heavy Machine Gun Last Messages --------------- 23492_ Striker stasis bubble strength at 8. 23492_ P-80 Master stasis bubble strength at 90. 23492_ P-80 Master stasis bubble strength at 189. 23492_ H-88 Terminator stasis bubble strength at 177. 23492_ M-36 Artificer stasis bubble strength at 150. 23493_ System corrupted: Hdn. Centrium Wheel rejected. 23493_ H-88 Terminator stasis bubble strength at 62. 23493_ Striker stasis bubble bursts. 23493_ Penetrated by Slug. 23493_ Slug penetrates Wall. 23493_ Penetrated by Slug. 23493_ P-80 Master stasis bubble strength at 79. 23509_ System corrupted: Heat flow error (+166). 23511_ Acquired Prototype Launcher. 23511_ Identified Enh. Gamma Bomb Array. 23516_ Enh. Gamma Bomb Array severed. 23516_ Slug penetrates Field Warper. 23516_ Slug penetrates Wall. 23519_ Penetrated by Slug. [Achievement: Overachiever] Map ----- +----------------------------------------------------+ | ????????# #???????????????????????????????????? | | ????????# #???????????????????????????????????? | | ????????# #???????????????????????????????????? | | ????????# #???????????????????????????????????? | | ????????# #???????????????????????????????????? | | ????????# #???????????????????????????????????? | | ???###### #???????????????????????????????????? | | ???# #???????????????????????????????????? | | ???# #???????????????????????????????????? | | ???# ### #???????????????????????????????????? | | ???# #?### ##???????????????????????????????????? | | ???# #???# #??? ?????????????????????????????? | | ???# #???# #??# #????????????????????????????? | | ???# #???# #??# #????????????????????????????? | | ???# #???? #??# #????????????????????????????? | | ???# #???? #??# #????????????????????????????? | | #### #???? #??# #????????????????????????????? | | # #???? #??# #????????????????????????????? | | # #???? #??# #????????????????????????????? | | # #???# #??# #????????????????????????????? | | = # #???# #??# #????????????????????????????? | | == + #???# #??# #?????###########????????????? | | ===# #???# #??# #?????# #????????????? | | + ##### #??# #?????# #????????????? | | # ### #### K ##m#### | """ #????????????? | | # #?# g hgi g gp@#] """ #????????????? | | #### #?# gb lE g gghp/l""" R" #????????????? | | ???# #?# b#### ###g#### """ """ #????????????? | | ???" #?## b##??# # ?# """ "" #????????????? | | ###"+####lE#???# # """ ## #????????????? | | #g #???# # """ ############????????????? | | /gg#???# # """ #???????????????????????? | | #b #???# # #???????????????????????? | | [ # #???# # #???????????????????????? | | #"####### ##??# # #???????????????????????? | | #"######g ] #??# #######???????????????????????? | | 7 #??# #?????????????????????????????? | | = #??# #?????????????????????????????? | | ####### !#??# #?????????????????????????????? | | =###?#?##+###??# ??w??g???????????????????????? | | ]# " ??????# ?????????????????????????????? | | !# ""%"""??????? ??????????????????????????????? | | !# "T"%"""???????????????????????????????????????? | | %# ""%"""" #?????????????????????????????????????? | | %/%%%"%" #?????????????????????????????????????? | | %"%%" " #?????????????????????????????????????? | | !%]%! #?????????????????????????????????????? | | *=%!=! #?????????????????????????????????????? | | %!%######/##?????????????????????????????????????? | | !%[##????????????????????????????????????????????? | +----------------------------------------------------+ Best States ------------- Heat Dissipation 101 Coolant Potential 220 Energy Generation 29 Energy Capacity 1750 Matter Stores 345 Matter Capacity 400 Sight Range 16 Robot Scan Range 30 Terrain Scan Density 10 Base Temperature (-) 100 Armor Coverage 2400 Resistance: KI 30 Resistance: TH 30 Core Shielding 40 Point Defense Rating 80 Evasion (%) 50 Targeting Accuracy 14 Target Analysis 8 Recoil Reduction 6 Particle Charging 25 Item Schematics ----------------- Assault Drone Bay | -4/Zhirov | Free Exp. Heat Sink | -4/Zhirov | Free Exp. Optical Array | -4/Zhirov | Free Imp. Arc Thrower | -4/Zhirov | Free Robot Schematics ------------------ None Fabricated ------------ Nothing Alien Tech Used ----------------- Transdimensional Reconstructor Integrated Dissipator Achievements -------------- Alien Tech All-out Warlord No Explosion For You Overachiever Revolutionary Research Subspace Traveler Challenges ------------ None Game ------ Seed WarpWaveExtractor Manual? 0 Play Time 05:33:51 Cumulative 82.4 hours Start 2022.01.18 @ 09:44:05 End 2022.01.27 @ 15:21:00 Sessions 13 Manual Loads 0 Difficulty Rogue Special Mode None Game No. 44 Rogue 44 Adventurer 0 Explorer 0 Win Type - Total 5 Types 5/0/0/0/0/0/0/0/0 Lore% 44 Gallery% 57 Achievement% 51 Wizard Run 0 Options --------- ASCII 0 Keyboard 0 Movement Numpad Keybinds 0 Fullscreen 2 Font 24/Smallcaps Map View 76x50 Tactical HUD 1 Map Filters NONE Filters NONE Steam 1 RUN: 5e786b3e-edb2-4c9f-89a4-39abf207581b